fUSD/lending_fUSD_20250826
["ID","MTS","AMOUNT","RATE_DAILY","PERIOD"]
[381487215,1756230762971,-415.74,0.00028767,5]
[381487216,1756230763000,-728.92,0.00028767,5]
[381487217,1756230763013,-1382.78,0.00028767,5]
[381487218,1756230763024,-1380.42,0.00028767,5]
[381487219,1756230763035,-400.0,0.00028767,5]
[381487220,1756230763046,-1552.27,0.00028767,5]
[381487221,1756230763057,-411.47,0.00028767,5]
[381487222,1756230763068,-878.37,0.00028767,5]
[381487223,1756230763079,-400.0,0.00028767,5]
[381487224,1756230763089,-1109.68,0.00028767,5]
[381487225,1756230763100,-772.05,0.00028767,5]
[381487226,1756230763110,-1195.33,0.00028767,5]
[381487227,1756230763121,-650.21,0.00028767,5]
[381487228,1756230763131,-3396.04,0.00028767,5]
[381487229,1756230763141,-400.0,0.00028767,5]
[381487230,1756230763151,-524.42,0.00028767,5]
[381487231,1756230763161,-400.0,0.00028767,5]
[381487232,1756230763171,-400.0,0.00028767,5]
[381487233,1756230763181,-663.26,0.00028767,5]
[381487234,1756230763192,-400.0,0.00028767,5]
[381487235,1756230763202,-979.78,0.00028767,5]
[381487236,1756230763212,-773.75,0.00028767,5]
[381487237,1756230763225,-936.41,0.00028767,5]
[381487238,1756230763236,-669.79,0.00028767,5]
[381487239,1756230763247,-1622.1,0.00028767,5]
[381487240,1756230763258,-406.22,0.00028767,5]
[381487241,1756230763269,-400.0,0.00028767,5]
[381487242,1756230763279,-901.22,0.00028767,5]
[381487243,1756230763289,-400.0,0.00028767,5]
[381487244,1756230763299,-1367.67,0.00028767,5]
[381487245,1756230763308,-742.95,0.00028767,5]
[381487246,1756230763318,-400.0,0.00028767,5]
[381487247,1756230763327,-400.0,0.00028767,5]
[381487248,1756230763338,-909.97,0.00028767,5]
[381487249,1756230763347,-400.0,0.00028767,5]
[381487250,1756230763357,-400.0,0.00028767,5]
[381487251,1756230763367,-1346.04,0.00028767,5]
[381487252,1756230763376,-400.0,0.00028767,5]
[381487253,1756230763386,-1159.55,0.00028767,5]
[381487254,1756230763396,-1144.5,0.00028767,5]
[381487255,1756230763406,-400.0,0.00028767,5]
[381487256,1756230763415,-400.0,0.00028767,5]
[381487257,1756230763425,-957.94,0.00028767,5]
[381487258,1756230763435,-528.18997824,0.00028767,5]
[381487259,1756230763445,-400.0,0.00028767,5]
[381487260,1756230763455,-1349.87,0.00028767,5]
[381487261,1756230763464,-400.0,0.00028767,5]
[381487262,1756230763475,-746.51,0.00028767,5]
[381487263,1756230763485,-646.69,0.00028767,5]
[381487264,1756230763495,-400.0,0.00028767,5]
[381487265,1756230763505,-1218.8,0.00028767,5]
[381487266,1756230763514,-400.0,0.00028767,5]
[381487267,1756230763524,-803.65,0.00028767,5]
[381487268,1756230763533,-510.28751973,0.00028767,5]
[381487269,1756230763543,-486.65,0.00028767,5]
[381487270,1756230763552,-802.89,0.00028767,5]
[381487271,1756230763562,-1750.37,0.00028767,5]
[381487272,1756230763571,-595.5,0.00028767,5]
[381487273,1756230763580,-473.57,0.00028767,5]
[381487274,1756230763590,-400.0,0.00028767,5]
[381487275,1756230763599,-400.0,0.00028767,5]
[381487276,1756230763609,-400.0,0.00028767,5]
[381487277,1756230763618,-1034.18,0.00028767,5]
[381487278,1756230763627,-584.57,0.00028767,5]
[381487279,1756230763637,-3322.0,0.00028767,5]
[381487280,1756230763648,-400.0,0.00028767,5]
[381487281,1756230763658,-400.0,0.00028767,5]
[381487282,1756230763667,-567.64,0.00028767,5]
[381487283,1756230763680,-1068.12,0.00028767,5]
[381487284,1756230763692,-679.23,0.00028767,5]
[381487285,1756230763704,-1261.88,0.00028767,5]
[381487286,1756230763715,-1292.44,0.00028767,5]
[381487287,1756230763726,-458.84,0.00028767,5]
[381487288,1756230763737,-400.0,0.00028767,5]
[381487289,1756230763748,-400.0,0.00028767,5]
[381487290,1756230763757,-400.0,0.00028767,5]
[381487291,1756230763767,-1122.85,0.00028767,5]
[381487292,1756230763777,-400.0,0.00028767,5]
[381487293,1756230763787,-400.0,0.00028767,5]
[381487294,1756230763796,-400.0,0.00028767,5]
[381487295,1756230763806,-400.0,0.00028767,5]
[381487296,1756230763816,-736.74,0.00028767,5]
[381487297,1756230763826,-849.73,0.00028767,5]
[381487298,1756230763835,-598.7,0.00028767,5]
[381487299,1756230763845,-400.0,0.00028767,5]
[381487300,1756230763854,-400.0,0.00028767,5]
[381487301,1756230763863,-400.0,0.00028767,5]
[381487302,1756230763873,-1491.81,0.00028767,5]
[381487303,1756230763883,-750.42,0.00028767,5]
[381487304,1756230763893,-400.0,0.00028767,5]
[381487305,1756230763903,-632.76,0.00028767,5]
[381487306,1756230763912,-463.02,0.00028767,5]
[381487307,1756230763922,-400.0,0.00028767,5]
[381487308,1756230763932,-400.0,0.00028767,5]
[381487309,1756230763941,-1105.29,0.00028767,5]
[381487310,1756230763950,-400.0,0.00028767,5]
[381487311,1756230763959,-537.9,0.00028767,5]
[381487312,1756230763970,-400.0,0.00028767,5]
[381487313,1756230763979,-416.7,0.00028767,5]
[381487314,1756230763988,-400.0,0.00028767,5]
[381487315,1756230763998,-517.03,0.00028767,5]
[381487316,1756230764009,-401.08809215,0.00028767,5]
[381487317,1756230764019,-400.0,0.00028767,5]
[381487318,1756230764029,-1111.68,0.00028767,5]
[381487319,1756230764040,-531.53,0.00028767,5]
[381487320,1756230764050,-1203.47,0.00028767,5]
[381487321,1756230764059,-1302.16,0.00028767,5]
[381487322,1756230764069,-1324.35,0.00028767,5]
[381487323,1756230764079,-712.36,0.00028767,5]
[381487324,1756230764089,-400.0,0.00028767,5]
[381487325,1756230764099,-400.0,0.00028767,5]
[381487326,1756230764109,-1094.27,0.00028767,5]
[381487327,1756230764119,-1369.04,0.00028767,5]
[381487328,1756230764129,-816.57,0.00028767,5]
[381487329,1756230764139,-694.38,0.00028767,5]
[381487330,1756230764148,-400.0,0.00028767,5]
[381487331,1756230764158,-1171.55,0.00028767,5]
[381487332,1756230764167,-636.59,0.00028767,5]
[381487333,1756230764177,-400.0,0.00028767,5]
[381487334,1756230764187,-748.0,0.00028767,5]
[381487335,1756230764197,-674.36,0.00028767,5]
[381487336,1756230764207,-737.97,0.00028767,5]
[381487337,1756230764217,-400.0,0.00028767,5]
[381487338,1756230764227,-637.3,0.00028767,5]
[381487339,1756230764237,-408.13,0.00028767,5]
[381487340,1756230764247,-400.0,0.00028767,5]
[381487341,1756230764259,-1342.91,0.00028767,5]
[381487342,1756230764269,-719.93,0.00028767,5]
[381487343,1756230764280,-2696.16,0.00028767,5]
[381487344,1756230764290,-1012.86,0.00028767,5]
[381487345,1756230764300,-1267.69,0.00028767,5]
[381487346,1756230764310,-715.27,0.00028767,5]
[381487347,1756230764320,-1920.87,0.00028767,5]
[381487348,1756230764330,-667.39,0.00028767,5]
[381487349,1756230764339,-754.15,0.00028767,5]
[381487350,1756230764349,-400.0,0.00028767,5]
[381487351,1756230764358,-787.87,0.00028767,5]
[381487352,1756230764368,-1759.81,0.00028767,5]
[381487353,1756230764377,-400.0,0.00028767,5]
[381487354,1756230764386,-400.0,0.00028767,5]
[381487355,1756230764396,-1291.3,0.00028767,5]
[381487356,1756230764405,-400.0,0.00028767,5]
[381487357,1756230764416,-1556.21,0.00028767,5]
[381487358,1756230764426,-400.0,0.00028767,5]
[381487359,1756230764435,-400.0,0.00028767,5]
[381487360,1756230764445,-576.82,0.00028767,5]
[381487361,1756230764454,-400.0,0.00028767,5]
[381487362,1756230764464,-5113.05,0.00028767,5]
[381487363,1756230764473,-400.0,0.00028767,5]
[381487364,1756230764482,-705.33,0.00028767,5]
[381487365,1756230764492,-654.53,0.00028767,5]
[381487366,1756230764502,-1041.63,0.00028767,5]
[381487367,1756230764512,-425.77,0.00028767,5]
[381487368,1756230764521,-1209.1,0.00028767,5]
[381487369,1756230764531,-400.0,0.00028767,5]
[381487370,1756230764540,-613.44,0.00028767,5]
[381487371,1756230764549,-1479.47,0.00028767,5]
[381487372,1756230764558,-400.0,0.00028767,5]
[381487373,1756230764568,-401.04187202,0.00028767,5]
[381487374,1756230764577,-1317.24,0.00028767,5]
[381487375,1756230764586,-400.0,0.00028767,5]
[381487376,1756230764595,-762.16,0.00028767,5]
[381487377,1756230764604,-960.79,0.00028767,5]
[381487378,1756230764614,-400.0,0.00028767,5]
[381487379,1756230764623,-402.24511971,0.00028767,5]
[381487380,1756230764633,-1171.13,0.00028767,5]
[381487381,1756230764646,-1235.69,0.00028767,5]
[381487382,1756230764657,-630.41,0.00028767,5]
[381487383,1756230764666,-1512.33,0.00028767,5]
[381487384,1756230764681,-396.70628402,0.00028767,5]
[381487385,1756230764691,-1303.22,0.00028767,5]
[381487386,1756230764700,-386.34,0.00028767,5]
[381487387,1756230764711,-400.0,0.00028767,5]
[381487388,1756230764720,-1422.53,0.00028767,5]
[381487389,1756230764730,-856.1,0.00028767,5]
[381487390,1756230764739,-400.0,0.00028767,5]
[381487391,1756230764750,-792.6,0.00028767,5]
[381487392,1756230764759,-471.44,0.00028767,5]
[381487393,1756230764768,-1403.76,0.00028767,5]
[381487394,1756230764778,-1073.32,0.00028767,5]
[381487395,1756230764787,-400.0,0.00028767,5]
[381487396,1756230764796,-400.0,0.00028767,5]
[381487397,1756230764805,-1007.77,0.00028767,5]
[381487398,1756230764815,-1420.21,0.00028767,5]
[381487399,1756230764825,-952.45,0.00028767,5]
[381487400,1756230764835,-400.0,0.00028767,5]
[381487401,1756230764844,-400.0,0.00028767,5]
[381487402,1756230764855,-491.6,0.00028767,5]
[381487403,1756230764865,-1084.48,0.00028767,5]
[381487404,1756230764875,-2280.32,0.00028767,5]
[381487405,1756230764886,-1335.11,0.00028767,5]
[381487406,1756230764896,-400.0,0.00028767,5]
[381487407,1756230764905,-1191.78,0.00028767,5]
[381487408,1756230764915,-1124.09,0.00028767,5]
[381487409,1756230764925,-1238.64,0.00028767,5]
[381487410,1756230764934,-400.0,0.00028767,5]
[381487411,1756230764944,-1253.31,0.00028767,5]
[381487412,1756230764953,-1325.68,0.00028767,5]
[381487413,1756230764962,-938.22,0.00028767,5]
[381487414,1756230764971,-499.47,0.00028767,5]
[381487415,1756230764981,-601.51,0.00028767,5]
[381487416,1756230764991,-400.0,0.00028767,5]
[381487417,1756230765000,-400.0,0.00028767,5]
[381487418,1756230765011,-484.19,0.00028767,5]
[381487419,1756230765021,-400.0,0.00028767,5]
[381487420,1756230765031,-797.42,0.00028767,5]
[381487421,1756230765040,-737.11,0.00028767,5]
[381487422,1756230765049,-703.79,0.00028767,5]
[381487423,1756230765058,-680.36,0.00028767,5]
[381487424,1756230765068,-1575.39,0.00028767,5]
[381487425,1756230765077,-672.12,0.00028767,5]
[381487426,1756230765088,-759.87,0.00028767,5]
[381487427,1756230765098,-926.18,0.00028767,5]
[381487428,1756230765108,-215.35310863,0.00028767,5]
[381487429,1756230765117,-400.0,0.00028767,5]
[381487430,1756230765127,-618.83,0.00028767,5]
[381487431,1756230765137,-400.0,0.00028767,5]
[381487432,1756230765146,-862.99,0.00028767,5]
[381487433,1756230765489,-400.0,0.00028767,5]
[381487434,1756230765505,-1075.04,0.00028767,5]
[381487435,1756230765518,-1447.2,0.00028767,5]
[381487436,1756230765527,-575.53,0.00028767,5]
[381487437,1756230765538,-489.17,0.00028767,5]
[381487438,1756230765547,-845.06,0.00028767,5]
[381487439,1756230765557,-1238.05,0.00028767,5]
[381487440,1756230765568,-1102.7,0.00028767,5]
[381487441,1756230765577,-500.0,0.00028767,10]
[381487442,1756230765587,-1359.79,0.00028767,5]
[381487443,1756230765597,-820.48,0.00028767,5]
[381487444,1756230765606,-1712.23,0.00028767,5]
[381487445,1756230765615,-1138.32,0.00028767,5]
[381487446,1756230765624,-717.51,0.00028767,5]
[381487447,1756230765634,-1260.62,0.00028767,5]
[381487448,1756230765644,-690.59,0.00028767,5]
[381487449,1756230765653,-400.0,0.00028767,5]
[381487450,1756230765662,-400.0,0.00028767,5]
[381487451,1756230765673,-400.0,0.00028767,5]
[381487452,1756230765683,-400.0,0.00028767,5]
[381487453,1756230765692,-1643.75,0.00028767,5]
[381487454,1756230765702,-956.27,0.00028767,5]
[381487455,1756230765711,-702.95,0.00028767,5]
[381487456,1756230765722,-1080.95,0.00028767,5]
[381487457,1756230765731,-400.0,0.00028767,5]
[381487458,1756230765740,-704.75,0.00028767,5]
[381487459,1756230765751,-1188.76,0.00028767,5]
[381487460,1756230765761,-400.0,0.00028767,5]
[381487461,1756230765770,-830.28,0.00028767,5]
[381487462,1756230765779,-4381.4,0.00028767,5]
[381487463,1756230765789,-884.15,0.00028767,5]
[381487464,1756230765798,-883.77,0.00028767,5]
[381487465,1756230765808,-903.37,0.00028767,5]
[381487466,1756230765817,-400.0,0.00028767,5]
[381487467,1756230765826,-1272.98,0.00028767,5]
[381487468,1756230765835,-400.0,0.00028767,5]
[381487469,1756230765845,-1035.82,0.00028767,5]
[381487470,1756230765854,-440.04,0.00028767,5]
[381487471,1756230765863,-588.09,0.00028767,5]
[381487472,1756230765872,-1060.85,0.00028767,5]
[381487473,1756230765882,-729.67,0.00028767,5]
[381487474,1756230765892,-734.09,0.00028767,5]
[381487475,1756230765902,-818.36,0.00028767,5]
[381487476,1756230765911,-1006.17,0.00028767,5]
[381487477,1756230765921,-752.5,0.00028767,5]
[381487478,1756230765930,-1343.19,0.00028767,5]
[381487479,1756230765939,-1000.26,0.00028767,5]
[381487480,1756230765949,-400.0,0.00028767,5]
[381487481,1756230765959,-400.0,0.00028767,5]
[381487482,1756230765968,-1006.41,0.00028767,5]
[381487483,1756230765978,-465.25,0.00028767,5]
[381487484,1756230765987,-574.94,0.00028767,5]
[381487485,1756230765997,-927.58,0.00028767,5]
[381487486,1756230766007,-819.77,0.00028767,5]
[381487487,1756230766021,-1229.66,0.00028767,5]
[381487488,1756230766031,-1087.43,0.00028767,5]
[381487489,1756230766040,-400.0,0.00028767,5]
[381487490,1756230766049,-1561.08,0.00028767,5]
[381487491,1756230766059,-605.76,0.00028767,5]
[381487492,1756230766068,-633.29,0.00028767,5]
[381487493,1756230766078,-1303.8,0.00028767,5]
[381487494,1756230766087,-673.66,0.00028767,5]
[381487495,1756230766096,-951.85,0.00028767,5]
[381487496,1756230766105,-727.97,0.00028767,5]
[381487497,1756230766115,-400.0,0.00028767,5]
[381487498,1756230766125,-761.39,0.00028767,5]
[381487499,1756230766134,-823.04,0.00028767,5]
[381487500,1756230766143,-995.91,0.00028767,5]
[381487501,1756230766153,-726.7,0.00028767,5]
[381487502,1756230766162,-2954.18,0.00028767,5]
[381487503,1756230766171,-932.17,0.00028767,5]
[381487504,1756230766181,-777.25,0.00028767,5]
[381487505,1756230766191,-810.82,0.00028767,5]
[381487506,1756230766201,-674.55,0.00028767,5]
[381487507,1756230766210,-400.0,0.00028767,5]
[381487508,1756230766220,-400.0,0.00028767,5]
[381487509,1756230766230,-524.65,0.00028767,5]
[381487510,1756230766239,-894.99,0.00028767,5]
[381487511,1756230766249,-610.96,0.00028767,5]
[381487512,1756230766259,-400.0,0.00028767,5]
[381487513,1756230766272,-433.22,0.00028767,5]
[381487514,1756230766281,-705.71,0.00028767,5]
[381487515,1756230766291,-1276.0,0.00028767,5]
[381487516,1756230766301,-1048.88,0.00028767,5]
[381487517,1756230766310,-635.0,0.00028767,5]
[381487518,1756230766320,-916.09,0.00028767,5]
[381487519,1756230766330,-400.0,0.00028767,5]
[381487520,1756230766339,-1476.54,0.00028767,5]
[381487521,1756230766349,-586.32,0.00028767,5]
[381487522,1756230766359,-735.88,0.00028767,5]
[381487523,1756230766370,-420.01,0.00028767,5]
[381487524,1756230766379,-1424.15,0.00028767,5]
[381487525,1756230766389,-865.15,0.00028767,5]
[381487526,1756230766399,-400.0,0.00028767,5]
[381487527,1756230766409,-711.61,0.00028767,5]
[381487528,1756230766420,-400.0,0.00028767,5]
[381487529,1756230766429,-400.0,0.00028767,5]
[381487530,1756230766439,-657.69,0.00028767,5]
[381487531,1756230766449,-2547.01,0.00028767,5]
[381487532,1756230766459,-924.7,0.00028767,5]
[381487533,1756230766468,-569.85,0.00028767,5]
[381487534,1756230766478,-1447.41,0.00028767,5]
[381487535,1756230766488,-947.0,0.00028767,5]
[381487536,1756230766497,-1125.16,0.00028767,5]
[381487537,1756230766507,-1186.06,0.00028767,5]
[381487538,1756230766518,-1017.63,0.00028767,5]
[381487539,1756230766528,-509.43,0.00028767,5]
[381487540,1756230766538,-629.18,0.00028767,5]
[381487541,1756230766547,-1490.01,0.00028767,5]
[381487542,1756230766557,-1054.6,0.00028767,5]
[381487543,1756230766567,-516.44,0.00028767,5]
[381487544,1756230766577,-810.92,0.00028767,5]
[381487545,1756230766586,-682.69,0.00028767,5]
[381487546,1756230766596,-1009.65,0.00028767,5]
[381487547,1756230766605,-883.73,0.00028767,5]
[381487548,1756230766615,-1283.33,0.00028767,5]
[381487549,1756230766624,-1591.74,0.00028767,5]
[381487550,1756230766634,-817.88,0.00028767,5]
[381487551,1756230766643,-657.14,0.00028767,5]
[381487552,1756230766653,-559.69,0.00028767,5]
[381487553,1756230766664,-400.0,0.00028767,5]
[381487554,1756230766678,-434.49,0.00028767,5]
[381487555,1756230766689,-839.27,0.00028767,5]
[381487556,1756230766700,-543.23,0.00028767,5]
[381487557,1756230766709,-400.0,0.00028767,5]
[381487558,1756230766721,-694.48,0.00028767,5]
[381487559,1756230766732,-1164.11,0.00028767,5]
[381487560,1756230766741,-400.0,0.00028767,5]
[381487561,1756230766750,-2471.18,0.00028767,5]
[381487562,1756230766763,-923.85,0.00028767,5]
[381487563,1756230766772,-735.71,0.00028767,5]
[381487564,1756230766781,-602.76,0.00028767,5]
[381487565,1756230766790,-534.44005323,0.00028767,5]
[381487566,1756230766799,-1015.23,0.00028767,5]
[381487567,1756230766809,-1297.06,0.00028767,5]
[381487568,1756230766820,-400.0,0.00028767,5]
[381487569,1756230766832,-400.0,0.00028767,5]
[381487570,1756230766842,-1022.18,0.00028767,5]
[381487571,1756230766854,-413.82,0.00028767,5]
[381487572,1756230766864,-400.0,0.00028767,5]
[381487573,1756230766875,-435.62,0.00028767,5]
[381487574,1756230766886,-677.17,0.00028767,5]
[381487575,1756230766896,-481.79,0.00028767,5]
[381487576,1756230766907,-869.43,0.00028767,5]
[381487577,1756230766916,-400.0,0.00028767,5]
[381487578,1756230766927,-400.0,0.00028767,5]
[381487579,1756230766937,-1587.32,0.00028767,5]
[381487580,1756230766946,-404.82,0.00028767,5]
[381487581,1756230766956,-1419.4,0.00028767,5]
[381487582,1756230766966,-795.96,0.00028767,5]
[381487583,1756230766976,-400.0,0.00028767,5]
[381487584,1756230766986,-400.0,0.00028767,5]
[381487585,1756230766997,-400.0,0.00028767,5]
[381487586,1756230767007,-1337.38,0.00028767,5]
[381487588,1756230767017,-643.48,0.00028767,5]
[381487589,1756230767027,-1193.06,0.00028767,5]
[381487590,1756230767037,-1262.91,0.00028767,5]
[381487591,1756230767049,-400.0,0.00028767,5]
[381487592,1756230767059,-400.0,0.00028767,5]
[381487593,1756230767070,-1405.96,0.00028767,5]
[381487594,1756230767080,-400.0,0.00028767,5]
[381487595,1756230767089,-1694.19,0.00028767,5]
[381487596,1756230767098,-847.69,0.00028767,5]
[381487597,1756230767107,-1432.19,0.00028767,5]
[381487598,1756230767116,-837.85,0.00028767,5]
[381487599,1756230767126,-1066.71,0.00028767,5]
[381487600,1756230767136,-1265.35,0.00028767,5]
[381487601,1756230767145,-1337.65,0.00028767,5]
[381487602,1756230767155,-983.38,0.00028767,5]
[381487603,1756230767164,-448.3,0.00028767,5]
[381487604,1756230767174,-1419.37,0.00028767,5]
[381487605,1756230767184,-510.88,0.00028767,5]
[381487606,1756230767194,-2638.84,0.00028767,5]
[381487607,1756230767204,-1378.39,0.00028767,5]
[381487608,1756230767213,-866.21,0.00028767,5]
[381487609,1756230767222,-436.05,0.00028767,5]
[381487610,1756230767232,-400.0,0.00028767,5]
[381487611,1756230767242,-1097.19,0.00028767,5]
[381487612,1756230767251,-968.52,0.00028767,5]
[381487613,1756230767261,-1097.27,0.00028767,5]
[381487614,1756230767272,-400.0,0.00028767,5]
[381487615,1756230767281,-400.0,0.00028767,5]
[381487616,1756230767290,-898.9,0.00028767,5]
[381487617,1756230767300,-894.21,0.00028767,5]
[381487618,1756230767310,-1054.02,0.00028767,5]
[381487619,1756230767319,-400.0,0.00028767,5]
[381487620,1756230767329,-486.16,0.00028767,5]
[381487621,1756230767339,-400.0,0.00028767,5]
[381487622,1756230767348,-2351.0,0.00028767,5]
[381487623,1756230767358,-400.0,0.00028767,5]
[381487624,1756230767369,-400.0,0.00028767,5]
[381487625,1756230767378,-990.16,0.00028767,5]
[381487626,1756230767387,-400.0,0.00028767,5]
[381487627,1756230767397,-708.23,0.00028767,5]
[381487628,1756230767407,-812.56,0.00028767,5]
[381487629,1756230767418,-1481.93,0.00028767,5]
[381487630,1756230767428,-1309.05,0.00028767,5]
[381487631,1756230767438,-400.0,0.00028767,5]
[381487632,1756230767448,-400.0,0.00028767,5]
[381487633,1756230767457,-400.0,0.00028767,5]
[381487634,1756230767467,-752.61,0.00028767,5]
[381487635,1756230767477,-12576.35,0.00028767,5]
[381487636,1756230767486,-716.67,0.00028767,5]
[381487637,1756230767495,-440.38,0.00028767,5]
[381487638,1756230767504,-1045.55,0.00028767,5]
[381487639,1756230767515,-1040.13,0.00028767,5]
[381487640,1756230767524,-610.13,0.00028767,5]
[381487641,1756230767533,-1232.14,0.00028767,5]
[381487642,1756230767543,-400.0,0.00028767,5]
[381487643,1756230767552,-453.93,0.00028767,5]
[381487644,1756230767561,-513.88,0.00028767,5]
[381487645,1756230767570,-956.51,0.00028767,5]
[381487646,1756230767580,-1004.11,0.00028767,5]
[381487647,1756230767589,-1144.57,0.00028767,5]
[381487648,1756230767598,-2716.73,0.00028767,5]
[381487649,1756230767607,-1348.02,0.00028767,5]
[381487650,1756230767617,-400.0,0.00028767,5]
[381487651,1756230767626,-400.0,0.00028767,5]
[381487652,1756230767636,-795.95,0.00028767,5]
[381487653,1756230767645,-720.68,0.00028767,5]
[381487654,1756230767654,-400.0,0.00028767,5]
[381487655,1756230767663,-583.37,0.00028767,5]
[381487656,1756230767673,-1164.87,0.00028767,5]
[381487657,1756230767685,-796.49,0.00028767,5]
[381487658,1756230767694,-1234.75,0.00028767,5]
[381487659,1756230767704,-1208.11,0.00028767,5]
[381487660,1756230767714,-2365.85,0.00028767,5]
[381487661,1756230767726,-1090.57,0.00028767,5]
[381487662,1756230767736,-725.15,0.00028767,5]
[381487663,1756230767745,-400.0,0.00028767,5]
[381487664,1756230767756,-1204.31,0.00028767,5]
[381487665,1756230767768,-400.0,0.00028767,5]
[381487666,1756230767777,-607.03,0.00028767,5]
[381487667,1756230767786,-1391.48,0.00028767,5]
[381487668,1756230767795,-1460.18,0.00028767,5]
[381487669,1756230767805,-774.92,0.00028767,5]
[381487670,1756230767815,-1529.6,0.00028767,5]
[381487671,1756230767824,-949.27,0.00028767,5]
[381487672,1756230767834,-400.0,0.00028767,5]
[381487673,1756230767844,-1381.91,0.00028767,5]
[381487674,1756230767853,-1214.51,0.00028767,5]
[381487675,1756230767864,-681.18,0.00028767,5]
[381487676,1756230767981,-846.41,0.00028767,5]
[381487677,1756230767991,-2660.08,0.00028767,5]
[381487678,1756230768001,-870.23,0.00028767,5]
[381487679,1756230768013,-543.139183,0.00028767,5]
[381487680,1756230768023,-1268.24,0.00028767,5]
[381487681,1756230768032,-1218.74,0.00028767,5]
[381487682,1756230768043,-960.42,0.00028767,5]
[381487683,1756230768054,-727.24,0.00028767,5]
[381487684,1756230768064,-836.11,0.00028767,5]
[381487685,1756230768074,-1206.86,0.00028767,5]
[381487686,1756230768084,-935.16,0.00028767,5]
[381487687,1756230768094,-400.0,0.00028767,5]
[381487688,1756230768104,-1646.5,0.00028767,5]
[381487689,1756230768115,-5333.52,0.00028767,5]
[381487690,1756230768125,-696.66,0.00028767,5]
[381487691,1756230768135,-400.0,0.00028767,5]
[381487692,1756230768144,-400.0,0.00028767,5]
[381487693,1756230768154,-446.0,0.00028767,5]
[381487694,1756230768165,-400.0,0.00028767,2]
[381487695,1756230768175,-859.49,0.00028767,5]
[381487696,1756230768185,-1578.12,0.00028767,5]
[381487697,1756230768194,-928.83,0.00028767,5]
[381487698,1756230768204,-604.92,0.00028767,5]
[381487699,1756230768215,-400.0,0.00028767,5]
[381487700,1756230768224,-1272.58,0.00028767,5]
[381487701,1756230768234,-400.0,0.00028767,5]
[381487702,1756230768244,-400.0,0.00028767,5]
[381487703,1756230768254,-636.63,0.00028767,5]
[381487704,1756230768264,-714.94,0.00028767,5]
[381487705,1756230768274,-752.58,0.00028767,5]
[381487706,1756230768284,-400.0,0.00028767,5]
[381487707,1756230768294,-538.31836607,0.00028767,5]
[381487708,1756230768304,-525.95,0.00028767,5]
[381487709,1756230768314,-1703.78,0.00028767,5]
[381487710,1756230768323,-400.0,0.00028767,5]
[381487711,1756230768334,-607.66,0.00028767,5]
[381487712,1756230768343,-150.0,0.00028768,2]
[381487713,1756230768353,-500.0,0.00028768,2]
[381487714,1756230768362,-150.0,0.00028768,2]
[381487715,1756230768371,-500.0,0.00028768,2]